bitfinex-derivatives/quotes_BTCF0:USTF0_20251217
["timestamp","ask_amount","ask_price","bid_price","bid_amount"]
[1765986769495,0.3608,87710.0,87705.0,8e-08]
[1765986770195,1.58052,87706.0,87667.0,0.3608]
[1765986770390,0.3608,87672.0,87639.0,0.3608]
[1765986770697,0.005,87685.0,87650.0,0.42421775]
[1765986771000,0.005,87685.0,87665.0,0.0114095]
[1765986771200,0.85892,87671.0,87640.0,0.11406735]
[1765986771402,0.85892,87655.0,87601.0,9.795e-05]
[1765986771595,8.204e-05,87654.0,87626.0,0.0114145]
[1765986771900,8.204e-05,87654.0,87623.0,0.0114149]
[1765986772101,8.204e-05,87654.0,87623.0,6e-05]
[1765986772297,2.04e-06,87654.0,87633.0,0.0114136]
[1765986772499,2.04e-06,87654.0,87640.0,0.0114127]
[1765986772698,4e-08,87664.0,87656.0,0.0114106]
[1765986772899,4e-08,87664.0,87634.0,0.11410314]
[1765986773104,4e-08,87664.0,87620.0,0.42421775]
[1765986773294,4e-08,87664.0,87640.0,0.42421775]
[1765986773495,0.0114042,87707.0,87663.0,0.005]
[1765986773794,0.0114039,87709.0,87680.0,0.0114075]
[1765986773999,0.85892,87704.0,87664.0,0.11409403]
[1765986774200,0.42421775,87700.0,87663.0,0.005]
[1765986774398,0.0001711,87690.0,87673.0,0.0001711]
[1765986774601,0.005,87727.0,87673.0,0.0001711]
[1765986774802,0.005,87727.0,87692.0,0.0114059]
[1765986774803,0.0114023,87721.0,87692.0,0.0114059]
[1765986775003,0.005,87727.0,87680.0,0.42421775]
[1765986775302,0.0114034,87713.0,87681.0,0.0114073]
[1765986775508,0.0114027,87718.0,87674.0,0.00748]
[1765986775806,0.85892,87726.0,87674.0,0.00748]
[1765986775807,0.0001711,87702.0,87685.0,0.0001711]
[1765986776008,0.0001711,87702.0,87694.0,0.3608]
[1765986776302,0.3608,87701.0,87692.0,0.3608]
[1765986776507,0.3608,87728.0,87707.0,0.0114039]
[1765986776701,0.3608,87736.0,87712.0,0.3608]
[1765986776902,0.3608,87736.0,87722.0,0.3608]
[1765986777201,0.3608,87725.0,87704.0,0.3608]
[1765986777398,0.000171,87723.0,87706.0,0.000171]
[1765986777800,0.3608,87715.0,87706.0,0.000171]
[1765986778200,0.3608,87707.0,87698.0,0.3608]
[1765986778605,0.3608,87699.0,87679.0,0.7818476]
[1765986778806,0.3608,87689.0,87679.0,0.77044]
[1765986779207,0.000171,87693.0,87685.0,0.0114068]
[1765986779507,0.3608,87714.0,87692.0,0.3608]
[1765986779711,0.3608,87714.0,87679.0,0.77044]
[1765986779712,0.0114072,87683.0,87656.0,0.36078]
[1765986780005,0.0114079,87678.0,87650.0,0.3608]
[1765986780205,0.3608,87679.0,87663.0,3e-08]
[1765986780599,0.85892,87738.0,87669.0,0.4243689]
[1765986780798,0.86392,87727.0,87670.0,0.4243689]
[1765986781003,0.86392,87727.0,87681.0,0.0114074]
[1765986781004,1.2832889,87720.0,87681.0,0.0114074]
[1765986781203,0.0114036,87711.0,87670.0,0.2308]
[1765986781514,0.000171,87699.0,87682.0,0.000171]
[1765986781897,6e-08,87719.0,87682.0,0.000171]
[1765986782102,6e-08,87727.0,87722.0,0.011402]
[1765986782300,6e-08,87727.0,87705.0,0.005]
[1765986782505,0.85892,87706.0,87640.0,0.42536889]
[1765986782704,0.85892,87699.0,87643.0,0.34052]
[1765986783015,0.000171,87690.0,87672.0,0.000171]
[1765986783508,0.000171,87690.0,87663.0,0.00500003]
[1765986783809,0.0114083,87675.0,87663.0,0.00500003]
[1765986784108,0.0114087,87672.0,87663.0,3e-08]
[1765986784307,0.8703293,87667.0,87663.0,3e-08]
[1765986784506,0.0114099,87663.0,87656.0,3e-08]
[1765986784708,0.0114099,87663.0,87610.0,0.4357855]
[1765986784709,0.85892,87676.0,87625.0,0.00388]
[1765986785011,0.0114102,87660.0,87630.0,0.0114141]
[1765986785204,0.0114106,87657.0,87625.0,0.0114147]
[1765986785406,0.0114106,87657.0,87629.0,0.0114141]
[1765986785604,0.0001711,87652.0,87634.0,0.0001711]
[1765986785809,0.8590911,87652.0,87615.0,0.3938]
[1765986786003,0.0114128,87640.0,87620.0,0.3608]
[1765986786199,0.3608,87635.0,87620.0,0.3608]
[1765986786802,0.3608,87635.0,87620.0,0.3609711]
[1765986787210,0.3608,87645.0,87620.0,0.3609711]
[1765986787402,0.3608,87637.0,87622.0,1e-07]
[1765986787605,0.005,87644.0,87622.0,0.3608001]
[1765986788109,0.0114128,87640.0,87622.0,1e-07]
[1765986788305,0.3608,87623.0,87592.0,0.3608]
[1765986788506,0.005,87644.0,87582.0,0.3608]
[1765986788507,0.3608,87605.0,87582.0,0.3608]
[1765986788713,0.3608,87632.0,87611.0,0.0114165]
[1765986788907,0.3608,87632.0,87612.0,0.3608]
[1765986789412,0.005,87644.0,87623.0,0.3608]
[1765986789614,0.005,87644.0,87613.0,0.0001712]
[1765986789615,0.3608,87630.0,87613.0,0.0001712]
[1765986790018,0.005,87644.0,87627.0,0.3608]
[1765986790310,0.005,87644.0,87627.0,0.34413]
[1765986790513,0.3608,87648.0,87635.0,0.3608]
[1765986790715,0.3608,87663.0,87643.0,0.3608]
[1765986790911,0.3608,87679.0,87660.0,0.3608]
[1765986791119,0.3608,87702.0,87678.0,0.0114077]
[1765986791308,0.3608,87705.0,87682.0,0.3608]
[1765986791508,0.0114078,87679.0,87663.0,0.005]
[1765986791716,0.3608,87664.0,87636.0,0.0114133]
[1765986791915,0.84443,87683.0,87663.0,0.3608]
[1765986792215,0.84443,87683.0,87632.0,0.304]
[1765986792216,0.0114111,87654.0,87627.0,0.53812]
[1765986792417,0.3608,87630.0,87622.0,0.005]
[1765986792609,0.3608,87628.0,87607.0,0.3608]
[1765986792804,0.00017119,87626.0,87609.0,0.00017119]
[1765986793211,0.00017119,87626.0,87617.0,0.32746]
[1765986793420,0.00017119,87626.0,87625.0,0.3608]
[1765986793615,0.00017119,87626.0,87609.0,0.00017119]
[1765986793811,0.3608,87611.0,87609.0,1.19e-06]
[1765986794315,0.00017119,87626.0,87610.0,0.3722166]
[1765986794517,0.3608,87640.0,87619.0,0.3608]
[1765986794823,0.3608,87640.0,87609.0,1.19e-06]
[1765986794824,0.3608,87631.0,87617.0,0.3608]
[1765986795004,0.3608,87631.0,87609.0,1.19e-06]
[1765986795317,0.005,87644.0,87630.0,0.3608]
[1765986795806,0.3608,87681.0,87643.0,0.83454]
[1765986796008,0.3608,87699.0,87679.0,0.3608]
[1765986796208,0.028032,87721.0,87679.0,0.3608]
[1765986796209,0.3608,87711.0,87691.0,0.0114061]
[1765986796419,0.3608,87714.0,87699.0,0.3608]
[1765986796716,0.3608,87714.0,87691.0,0.3608]
[1765986796918,0.3608,87695.0,87673.0,0.3608]
[1765986797129,0.3608,87705.0,87684.0,0.3608]
[1765986797415,0.0114002,87737.0,87706.0,0.0114041]
[1765986797608,0.02807304,87763.0,87685.0,1.54110183]
[1765986797609,0.3608,87717.0,87701.0,0.3608]
[1765986797811,0.0114035,87712.0,87689.0,0.3608]
[1765986798006,0.00017107,87709.0,87692.0,0.00017107]
[1765986798218,0.3608,87708.0,87699.0,0.3608]
[1765986798412,0.3608,87700.0,87692.0,1.07e-06]
[1765986798615,0.0114083,87675.0,87661.0,0.00013047]
[1765986798914,0.3608,87667.0,87647.0,0.3608]
[1765986799313,0.3608,87667.0,87628.0,0.82516]
[1765986799314,0.3608,87655.0,87630.0,0.011414]
[1765986799511,0.3608,87655.0,87622.0,0.005]
[1765986799512,0.3608,87647.0,87629.0,0.3608]
[1765986799712,0.36097107,87647.0,87629.0,0.36097107]
[1765986800011,8e-08,87646.0,87629.0,0.00017107]
[1765986800218,0.3608,87644.0,87629.0,0.00017107]
[1765986801121,0.0114088,87671.0,87644.0,0.0114122]
[1765986801319,0.3608,87674.0,87648.0,0.3608]
[1765986801507,0.0114071,87684.0,87650.0,0.3608]
[1765986801713,0.3608,87704.0,87659.0,0.3608]
[1765986802026,0.3608,87704.0,87646.0,0.4178599]
[1765986802027,0.00017107,87690.0,87674.0,0.3608]
[1765986802316,0.00017107,87690.0,87673.0,0.00017107]
[1765986802317,0.0114069,87686.0,87673.0,0.00017107]
[1765986802517,0.00017107,87690.0,87673.0,1.07e-06]
[1765986802821,0.3608,87717.0,87689.0,0.3608]
[1765986803026,0.3608,87691.0,87671.0,0.0114086]
[1765986803323,0.3608,87678.0,87663.0,0.005]
[1765986803514,0.3608,87667.0,87651.0,0.3722112]
[1765986803823,0.3608,87667.0,87654.0,0.0114108]
[1765986804215,0.3608,87667.0,87651.0,0.3608]
[1765986804417,0.3608,87667.0,87660.0,0.0114102]
[1765986804617,0.0114076,87680.0,87659.0,0.7216]
[1765986804809,0.3608,87672.0,87659.0,0.3608]
[1765986805010,0.3658,87685.0,87667.0,0.3608]
[1765986805224,0.0114053,87698.0,87667.0,0.3608]
[1765986805410,0.3608,87699.0,87676.0,0.3608]
[1765986805610,0.00017107,87696.0,87679.0,0.00017107]
[1765986805827,0.00017107,87696.0,87683.0,0.0114071]
[1765986806023,0.00017107,87696.0,87687.0,0.0114066]
[1765986806219,0.3608,87709.0,87690.0,0.0114062]
[1765986806526,0.3608,87709.0,87684.0,0.3608]
[1765986806527,0.0114039,87708.0,87684.0,0.3608]
[1765986806719,0.3608,87701.0,87684.0,0.3608]
[1765986807120,0.001,87698.0,87684.0,0.3608]
[1765986807517,0.001,87698.0,87684.0,0.372207]
[1765986807829,0.001,87698.0,87684.0,0.3608]
[1765986808230,0.001,87698.0,87684.0,0.3722069]
[1765986808427,7e-08,87701.0,87698.0,0.0114052]
[1765986808726,0.004,87708.0,87697.0,0.7216]
[1765986808924,0.3608,87699.0,87684.0,0.001]
[1765986809326,0.464242,87724.0,87686.0,0.3608]
[1765986809327,0.3608,87716.0,87686.0,0.3608]
[1765986809519,0.00017107,87710.0,87703.0,0.3608]
[1765986809720,7e-08,87710.0,87707.0,0.011404]
[1765986810025,7e-08,87710.0,87708.0,0.3608]
[1765986810420,7e-08,87710.0,87703.0,0.3608]
[1765986810724,7e-08,87710.0,87692.0,0.00017107]
[1765986810926,0.3608,87703.0,87692.0,7e-08]
[1765986811127,0.3608,87694.0,87692.0,7e-08]
[1765986811324,0.3608,87703.0,87692.0,7e-08]
[1765986811625,0.3608,87703.0,87684.0,7e-08]
[1765986811626,0.0114061,87692.0,87684.0,7e-08]
[1765986811831,0.0114062,87691.0,87684.0,7e-08]
[1765986812128,0.3608,87695.0,87684.0,7e-08]
[1765986812320,0.3608,87685.0,87684.0,7e-08]
[1765986812520,0.3608,87695.0,87684.0,7e-08]
[1765986812720,0.3608,87695.0,87685.0,0.0114068]
[1765986812926,0.3608,87695.0,87676.0,0.36097107]
[1765986813123,0.00700007,87710.0,87702.0,0.0114046]
[1765986813431,7e-08,87710.0,87705.0,0.32746]
[1765986813634,0.3608,87709.0,87684.0,0.001]
[1765986813923,0.81364,87690.0,87654.0,0.00012606]
[1765986814124,0.3608,87665.0,87654.0,0.00012606]
[1765986814325,0.0114099,87662.0,87654.0,0.00012606]
[1765986814524,0.0114107,87656.0,87644.0,0.3608]
[1765986814916,0.3608,87657.0,87644.0,0.3608]
[1765986815330,0.3608,87656.0,87644.0,0.3608]
[1765986815520,0.0001166,87655.0,87644.0,0.3608]
[1765986815726,0.3608,87645.0,87641.0,0.00017107]
[1765986816030,0.3608,87644.0,87617.0,0.3608]
[1765986816230,0.3608,87644.0,87627.0,0.3608]
[1765986816430,0.0114137,87634.0,87619.0,0.3608]
[1765986816620,8.823e-05,87633.0,87619.0,0.3608]
[1765986816817,0.3608,87623.0,87609.0,0.3608]
[1765986817020,0.00017118,87625.0,87620.0,0.3608]
[1765986817231,8.823e-05,87633.0,87625.0,0.0114146]
[1765986817528,8.823e-05,87633.0,87630.0,0.3608]
[1765986817828,0.3688,87644.0,87630.0,0.3608]
[1765986817829,0.008,87644.0,87630.0,0.3608]
[1765986818222,0.011413,87639.0,87630.0,0.3608]
[1765986818430,0.008,87644.0,87608.0,0.00012707]
[1765986818431,0.3608,87631.0,87608.0,0.00012707]
[1765986818632,0.3608,87618.0,87608.0,0.00012707]
[1765986819019,0.3608,87618.0,87607.0,0.3608]
[1765986819020,0.3608,87609.0,87592.0,0.3608]
[1765986819326,0.3608,87609.0,87594.0,0.3608]
[1765986819524,0.004,87623.0,87608.0,0.3608]
[1765986819829,0.3608,87634.0,87618.0,0.3608]
[1765986820031,0.005,87644.0,87624.0,0.3608]
[1765986820222,0.0114142,87629.0,87606.0,0.3608]
[1765986820419,0.005,87644.0,87604.0,0.0114174]
[1765986820623,0.00017118,87626.0,87609.0,0.00017118]
[1765986820933,8e-08,87626.0,87625.0,0.3608]
[1765986821130,0.005,87644.0,87625.0,0.3608]
[1765986821333,0.0114127,87641.0,87625.0,0.3608]
[1765986821631,0.005,87644.0,87625.0,0.3608]
[1765986821830,0.3608,87639.0,87625.0,0.3608]
[1765986822335,0.00017118,87641.0,87634.0,0.3608]
[1765986822522,0.5310086,87673.0,87634.0,0.3608]
[1765986822523,0.3608,87673.0,87634.0,1.55377]
[1765986822723,0.0114092,87668.0,87658.0,0.3608]
[1765986822932,0.0114092,87668.0,87658.0,0.34413]
[1765986823230,0.3608,87659.0,87629.0,0.0114141]
[1765986823430,0.00010916,87653.0,87646.0,0.3608]
[1765986823631,0.3608,87651.0,87637.0,0.3608]
[1765986823936,0.08982156,87681.0,87637.0,0.3608]
[1765986823937,0.83205,87725.0,87669.0,0.83217]
[1765986824123,0.3608,87719.0,87689.0,0.3608]
[1765986824320,0.3608,87719.0,87702.0,0.3608]
[1765986824520,0.3608,87719.0,87702.0,0.3722046]
[1765986824721,0.3608,87729.0,87710.0,0.3608]
[1765986825128,0.0114012,87730.0,87710.0,0.3608]
[1765986825331,0.0114012,87730.0,87702.0,1.08e-06]
[1765986825332,0.0114033,87713.0,87702.0,1.08e-06]
[1765986825526,0.3608,87705.0,87702.0,1.08e-06]
[1765986826539,0.0114044,87704.0,87702.0,1.08e-06]
[1765986826734,0.8434544,87704.0,87702.0,1.08e-06]
[1765986827030,0.76532,87703.0,87702.0,1.08e-06]
[1765986827240,0.0114044,87704.0,87702.0,1.08e-06]
[1765986827435,0.0114049,87701.0,87678.0,0.3608]
[1765986827637,0.3608,87705.0,87678.0,0.3608]
[1765986827638,0.3608,87693.0,87678.0,0.3608]
[1765986827843,0.3648,87705.0,87689.0,0.0114064]
[1765986828138,0.3608,87713.0,87697.0,0.3608]
[1765986828342,0.005,87703.0,87702.0,0.001]
[1765986828726,0.005,87703.0,87697.0,0.3608]
[1765986828931,0.005,87703.0,87694.0,0.00017108]
[1765986829129,7.5e-07,87711.0,87710.0,0.0114037]
[1765986829345,1e-08,87727.0,87711.0,0.83217]
[1765986829546,1e-08,87727.0,87726.0,0.7216]
[1765986830436,0.3608,87752.0,87726.0,0.7216]
[1765986830635,0.0114,87738.0,87726.0,0.3608]
[1765986831036,0.3721999,87739.0,87718.0,0.00017108]
[1765986831234,0.3608,87739.0,87718.0,0.00017108]
[1765986831847,0.3608,87748.0,87734.0,0.3608]
[1765986832548,0.0114009,87732.0,87696.0,0.83217]
[1765986832846,0.3608,87708.0,87690.0,0.3608]
[1765986833043,0.09029498,87739.0,87703.0,0.83217]
[1765986833243,0.3608,87723.0,87705.0,0.005]
[1765986833447,0.3608,87714.0,87705.0,0.00517097]
[1765986833649,0.3608,87714.0,87706.0,0.3608]
[1765986834048,0.3608,87714.0,87686.0,0.3608]
[1765986834252,0.3608,87701.0,87686.0,0.3608]
[1765986834547,0.3608,87744.0,87701.0,0.83217]
[1765986834751,0.3721993,87744.0,87728.0,0.3608]
[1765986834933,0.3608,87767.0,87743.0,0.3608]
[1765986835138,0.3608,87757.0,87743.0,0.36097097]
[1765986835338,0.011399,87746.0,87743.0,7e-08]
[1765986835534,0.3608,87747.0,87723.0,0.3608]
[1765986835535,0.3608,87745.0,87723.0,0.3608]
[1765986835734,0.3608,87745.0,87735.0,0.3608]
[1765986836449,0.3608,87745.0,87731.0,0.00017097]
[1765986836649,0.3608,87745.0,87731.0,0.01157187]
[1765986836951,0.00017097,87749.0,87742.0,0.3608]
[1765986837340,0.0113987,87748.0,87742.0,0.31079]
[1765986837537,0.00017097,87749.0,87742.0,0.31079]
[1765986837839,0.3608,87762.0,87742.0,0.31079]
[1765986838042,0.3608,87753.0,87742.0,0.31079]
[1765986838443,0.0113982,87752.0,87742.0,0.31079]
[1765986838844,0.00017097,87756.0,87742.0,0.31079]
[1765986839052,0.00017097,87756.0,87742.0,0.31179]
[1765986839256,0.3608,87771.0,87751.0,0.3608]
[1765986839448,0.76312,87798.0,87764.0,0.0113966]
[1765986839644,0.0113932,87791.0,87771.0,0.0113956]
[1765986839944,0.3608,87794.0,87776.0,0.3608]
[1765986840150,0.0113945,87781.0,87768.0,0.3608]
[1765986840355,0.81556308,87799.0,87766.0,0.00017087]
[1765986840356,0.7216,87774.0,87766.0,0.00017087]
[1765986840744,8e-08,87783.0,87779.0,0.0113946]
[1765986840950,0.3608,87806.0,87782.0,0.3721943]
[1765986841249,0.3608,87806.0,87790.0,0.3608]
[1765986841452,0.0113887,87826.0,87790.0,0.3608]
[1765986841453,0.08963672,87821.0,87806.0,0.83217]
[1765986841648,0.05385804,87859.0,87788.0,0.005]
[1765986841649,0.01226477,87831.0,87788.0,0.005]
[1765986841849,0.48240005,87840.0,87746.0,0.005]
[1765986841850,0.005,87810.0,87801.0,0.00017087]
[1765986842050,0.0113916,87804.0,87768.0,0.83417]
[1765986842257,0.005,87810.0,87768.0,0.002]
[1765986842258,0.82765,87809.0,87768.0,0.002]
[1765986842446,0.0113911,87807.0,87781.0,0.0113944]
[1765986842640,0.005,87810.0,87789.0,0.83778]
[1765986842847,0.0113912,87807.0,87777.0,0.0113949]
[1765986843050,0.00017087,87808.0,87791.0,7e-08]
[1765986843455,0.011393,87792.0,87791.0,7e-08]
[1765986843641,0.00017087,87808.0,87702.0,0.1254519]
[1765986843642,0.0113963,87767.0,87749.0,0.0286841]
[1765986843847,0.0113966,87765.0,87738.0,0.0114]
[1765986844043,0.4177835,87764.0,87690.0,0.00099999]
[1765986844352,0.005,87727.0,87678.0,0.01253698]
[1765986844556,0.00017097,87711.0,87694.0,0.00017097]
[1765986844755,9.7e-07,87711.0,87695.0,0.0114056]
[1765986844946,0.34413,87708.0,87694.0,0.00017097]
[1765986845253,0.3608,87695.0,87694.0,7e-08]
[1765986845556,0.00010241,87707.0,87694.0,7e-08]
[1765986845950,9.7e-07,87711.0,87700.0,0.3608]
[1765986846152,0.3608,87733.0,87710.0,0.3608]
[1765986846343,0.3608,87755.0,87719.0,0.3608]
[1765986846545,0.00099999,87800.0,87719.0,0.3608]
[1765986846546,0.3608,87792.0,87754.0,0.3608]
[1765986846758,0.48740005,87810.0,87784.0,0.011394]
[1765986846759,0.0163907,87810.0,87784.0,0.011394]
[1765986847052,0.0163907,87810.0,87754.0,0.26388]
[1765986847053,0.005,87810.0,87765.0,0.0569828]
[1765986847259,0.005,87810.0,87788.0,0.0113934]
[1765986847445,0.005,87810.0,87786.0,0.0113937]
[1765986847643,0.005,87810.0,87779.0,0.00017085]
[1765986847852,0.0113921,87799.0,87779.0,0.00017085]
[1765986848058,0.0113915,87804.0,87784.0,0.003]
[1765986848249,0.00017075,87803.0,87794.0,0.34413]
[1765986848554,5e-08,87803.0,87799.0,0.0113921]
[1765986848752,0.34413005,87809.0,87792.0,0.3608]
[1765986848949,0.32746,87801.0,87792.0,0.3608]
[1765986849152,0.34413005,87809.0,87792.0,0.3608]
[1765986849452,0.3608,87800.0,87789.0,0.3608]
[1765986849767,0.3608,87800.0,87786.0,0.004]
[1765986849958,0.34413005,87809.0,87789.0,0.3608]
[1765986850255,5e-08,87809.0,87789.0,0.3608]
[1765986850561,1e-07,87810.0,87803.0,0.3608]
[1765986850758,1e-07,87810.0,87798.0,0.36097085]
[1765986851060,1e-07,87810.0,87801.0,0.3608]
[1765986851445,1e-07,87810.0,87809.0,0.3608]
[1765986851649,0.0113883,87829.0,87809.0,0.3608]
[1765986851952,0.0113883,87829.0,87798.0,5e-08]
[1765986851953,0.3608,87818.0,87798.0,5e-08]
[1765986852150,0.3608,87799.0,87788.0,0.005]
[1765986852450,0.0001708,87828.0,87788.0,0.005]
[1765986852451,0.3608,87816.0,87788.0,0.005]
[1765986852644,0.3608,87799.0,87788.0,0.005]
[1765986852843,0.3608,87789.0,87788.0,1e-07]
[1765986853044,5e-08,87797.0,87788.0,1e-07]
[1765986853754,0.3608,87790.0,87788.0,1e-07]
[1765986853959,5e-08,87797.0,87789.0,0.3608]
[1765986854354,0.005,87810.0,87796.0,0.3608]
[1765986854557,0.0569164,87868.0,87840.0,0.0113867]
[1765986854558,0.005,87851.0,87840.0,0.0113867]
[1765986854860,1e-07,87851.0,87850.0,0.3608]
[1765986855053,0.3608,87871.0,87850.0,0.3608]
[1765986855362,0.3608,87854.0,87852.0,4e-08]
[1765986855954,0.3608,87854.0,87844.0,0.34413004]
[1765986856148,0.3608,87845.0,87829.0,0.005]
[1765986856351,0.3608,87845.0,87830.0,0.3608]
[1765986856551,0.3608,87854.0,87841.0,0.3608]
[1765986857357,0.00017039,87856.0,87849.0,0.3608]
[1765986857659,0.3608,87851.0,87841.0,0.3608]
[1765986857854,0.3608,87842.0,87829.0,4e-08]
[1765986858161,0.3608,87830.0,87793.0,0.02864977]
[1765986858361,0.3608,87810.0,87781.0,0.3608]
[1765986858656,0.3608,87836.0,87808.0,0.3608]
[1765986858847,0.3608,87836.0,87821.0,0.3608]
[1765986859047,0.005,87851.0,87821.0,0.3608]
[1765986859259,0.005,87851.0,87813.0,0.00017084]
[1765986859260,0.3608,87829.0,87813.0,0.00017084]
[1765986859458,0.3608,87829.0,87815.0,0.3608]
[1765986859658,0.42323143,87850.0,87790.0,0.3608]
[1765986859659,0.0113902,87814.0,87790.0,0.3608]
[1765986859962,0.0113919,87801.0,87790.0,0.3608]
[1765986860261,0.3608,87795.0,87785.0,0.3608]
[1765986860457,0.005,87810.0,87794.0,0.3608]
[1765986860658,0.005,87810.0,87803.0,0.3608]
[1765986860864,0.3608,87805.0,87793.0,0.00017084]
[1765986861066,0.3608,87796.0,87793.0,0.00017084]
[1765986861364,0.3608,87796.0,87779.0,0.00014114]
[1765986861657,0.3608,87780.0,87779.0,4e-08]
[1765986862164,0.29393,87780.0,87779.0,4e-08]
[1765986862548,0.3053246,87780.0,87771.0,8.8e-07]
[1765986862857,0.3608,87772.0,87762.0,0.3608]
[1765986863357,0.00010022,87780.0,87771.0,0.3608]
[1765986863560,0.3608,87800.0,87771.0,0.3608]
[1765986863561,0.3608,87821.0,87807.0,0.0113909]
[1765986863760,0.3608,87830.0,87809.0,0.3608]
[1765986864063,0.0288143,87847.0,87824.0,0.0113887]
[1765986864064,0.3608,87847.0,87824.0,0.0113887]
[1765986864253,1.4362232,87868.0,87803.0,0.002]
[1765986864254,0.3608,87828.0,87815.0,0.3608]
[1765986864563,0.3608,87828.0,87813.0,0.00017084]
[1765986864564,4.092e-05,87827.0,87813.0,0.00017084]
[1765986864774,0.3608,87818.0,87813.0,4e-08]
[1765986865257,0.3608,87816.0,87803.0,4e-08]
[1765986865461,6e-08,87830.0,87815.0,0.3608]
[1765986865665,6e-08,87830.0,87826.0,0.3608]
[1765986865862,0.0163854,87851.0,87834.0,0.0113875]
[1765986865863,0.005,87851.0,87834.0,0.0113875]
[1765986866158,0.3608,87844.0,87827.0,0.3608]
[1765986866362,0.011388,87831.0,87778.0,0.3608]
[1765986866563,0.0113936,87788.0,87760.0,0.3608]
[1765986866858,0.3608,87779.0,87774.0,2.78e-06]
[1765986867058,0.3608,87779.0,87772.0,2e-08]
[1765986867260,0.0113956,87773.0,87747.0,0.3608]
[1765986867450,0.3608,87778.0,87756.0,0.3608]
[1765986867451,0.34413,87767.0,87756.0,0.3608]
[1765986867956,0.3721949,87778.0,87756.0,0.34413]
[1765986868162,0.3608,87758.0,87747.0,0.0113988]
[1765986868563,0.3608,87768.0,87759.0,0.0113972]
[1765986868766,0.00017084,87776.0,87767.0,0.3608]
[1765986868953,0.00017084,87776.0,87746.0,0.005]
[1765986868954,0.33595693,87776.0,87763.0,0.00017084]
[1765986869659,1e-08,87777.0,87775.0,0.3608]
[1765986869858,0.3608,87814.0,87775.0,0.7216]
[1765986870064,0.3608,87837.0,87805.0,0.3608]
[1765986870259,0.0113886,87826.0,87805.0,0.3608]
[1765986870561,0.3608,87811.0,87797.0,0.3608]
[1765986871161,0.0113884,87828.0,87810.0,0.3608]
[1765986871369,0.08948284,87847.0,87797.0,0.3608]
[1765986871370,0.3608,87816.0,87797.0,0.3608]
[1765986871568,0.0113929,87793.0,87774.0,0.3608]
[1765986871864,0.0113929,87793.0,87737.0,0.0114001]
[1765986871865,0.3608,87782.0,87748.0,0.3608]
[1765986872066,0.00017062,87774.0,87769.0,0.3608]
[1765986872257,0.00017062,87780.0,87763.0,0.00017084]
[1765986872464,0.3608,87764.0,87750.0,0.3608]
[1765986872760,0.3608,87756.0,87750.0,0.3608]
[1765986872965,0.3608,87756.0,87723.0,0.28852]
[1765986872966,0.3608,87752.0,87723.0,0.28852]
[1765986873268,0.3608,87752.0,87732.0,0.3608]
[1765986873463,0.00017095,87751.0,87733.0,0.00017095]
[1765986873658,0.00017095,87751.0,87742.0,0.3608]
[1765986873859,0.00017095,87751.0,87733.0,0.00017095]
[1765986874052,0.42323143,87743.0,87733.0,0.00017095]
[1765986874255,0.0114008,87733.0,87710.0,5e-08]
[1765986874455,0.7216,87711.0,87677.0,0.3608]
[1765986874669,0.32746,87715.0,87699.0,0.0114051]
[1765986874956,0.3608,87734.0,87712.0,0.3608]
[1765986875157,0.3608,87723.0,87714.0,9.5e-07]
[1765986875456,0.3608,87723.0,87699.0,0.3608]
[1765986875457,0.3608,87715.0,87699.0,0.3608]
[1765986875656,0.32746,87715.0,87703.0,0.0114045]
[1765986875858,0.00010955,87722.0,87699.0,0.3608]
[1765986875859,0.00010955,87722.0,87708.0,0.3722038]
[1765986876571,0.00017095,87732.0,87714.0,0.09990261]
[1765986876765,0.3608,87726.0,87714.0,0.09990261]
[1765986877071,0.3608,87715.0,87708.0,0.3608]
[1765986877261,0.3608,87715.0,87706.0,0.00017095]
[1765986877460,0.3608,87707.0,87698.0,0.3608]
[1765986877764,0.3608,87707.0,87691.0,0.011406]
[1765986877966,0.3608,87707.0,87694.0,0.0114056]
[1765986878160,0.3608,87707.0,87690.0,0.3722062]
[1765986878361,5e-08,87707.0,87705.0,0.3722043]
[1765986878568,0.005,87727.0,87709.0,0.0114037]
[1765986878867,0.0114016,87726.0,87713.0,0.3608]
[1765986879069,0.3608,87714.0,87697.0,0.3608]
[1765986879565,0.36097095,87714.0,87697.0,0.36097095]
[1765986879779,0.3658,87727.0,87707.0,0.372204]
[1765986879959,0.3608,87745.0,87726.0,0.3608]
[1765986880368,0.3608,87727.0,87706.0,0.3608]
[1765986880869,0.3608,87713.0,87708.0,0.00017095]
[1765986881068,0.3608,87713.0,87696.0,0.3608]
[1765986881370,0.3608,87701.0,87674.0,0.3608]
[1765986881569,0.3608,87687.0,87665.0,0.02917925]
[1765986881773,0.3608,87678.0,87663.0,0.3658]
[1765986882073,0.0114881,87677.0,87667.0,0.00017105]
[1765986882275,0.3608,87669.0,87640.0,0.3608]
[1765986882574,0.3608,87669.0,87652.0,0.3608]
[1765986882765,8e-05,87677.0,87661.0,0.3608]
[1765986883271,0.42323143,87671.0,87661.0,0.3608]
[1765986883469,0.3608,87662.0,87642.0,0.3608]
[1765986884269,0.3608,87670.0,87659.0,0.0114102]
[1765986884558,0.3608,87670.0,87654.0,0.3608]
[1765986884559,0.00017105,87673.0,87669.0,0.7216]
[1765986884766,5e-08,87677.0,87669.0,0.7216]
[1765986885361,0.001,87670.0,87656.0,0.00011419]
[1765986885560,0.3608,87666.0,87656.0,0.00011419]
[1765986885765,0.00117105,87670.0,87657.0,0.3608]
[1765986885965,0.00017105,87670.0,87657.0,0.3608]
[1765986886175,5e-08,87670.0,87662.0,0.0114099]
[1765986886372,5e-08,87670.0,87665.0,0.3608]
[1765986886572,0.3608,87666.0,87657.0,0.3608]
[1765986886874,0.3608,87666.0,87647.0,0.3722118]
[1765986886875,0.3608,87658.0,87647.0,0.3722118]
[1765986887172,5e-08,87670.0,87659.0,0.0114102]
[1765986887366,0.3608,87666.0,87657.0,0.3608]